bitfinex-derivatives/quotes_BTCF0:USTF0_20250508
["timestamp","ask_amount","ask_price","bid_price","bid_amount"]
[1746675636036,0.008,98826.0,98825.0,1.0135678]
[1746675638829,0.0639,98829.0,98825.0,1.0135678]
[1746675638830,0.0639,98829.0,98828.0,0.2023616]
[1746675639031,0.0639,98829.0,98828.0,0.9023616]
[1746675640024,0.0649,98829.0,98828.0,0.9023616]
[1746675641033,0.0669,98829.0,98828.0,0.9023616]
[1746675641232,0.2349,98829.0,98828.0,0.9023616]
[1746675643133,0.0669,98829.0,98828.0,0.9023616]
[1746675644235,0.2349,98829.0,98828.0,0.9023616]
[1746675646036,0.2349,98829.0,98828.0,1.2631616]
[1746675648137,0.2349,98829.0,98828.0,1.3458016]
[1746675649733,0.2349,98829.0,98828.0,1.3508016]
[1746675650836,0.2339,98829.0,98828.0,1.3548016]
[1746675651531,0.2339,98829.0,98828.0,1.2648016]
[1746675651731,0.2339,98829.0,98828.0,0.9798]
[1746675651931,0.2339,98829.0,98828.0,0.36164]
[1746675653038,0.2339,98829.0,98828.0,0.40164]
[1746675653532,0.2339,98829.0,98828.0,0.43164]
[1746675654336,0.2339,98829.0,98828.0,0.6340016]
[1746675655132,0.0659,98829.0,98828.0,0.7440016]
[1746675655334,0.0659,98829.0,98828.0,0.8062016]
[1746675655534,0.0659,98829.0,98828.0,0.7235616]
[1746675655733,0.0659,98829.0,98828.0,0.8062016]
[1746675656231,0.2339,98829.0,98828.0,0.8062016]
[1746675657238,0.17,98829.0,98828.0,0.8062016]
[1746675657442,0.0015,98860.0,98828.0,0.98644]
[1746675657733,0.052074,98860.0,98852.0,0.3608]
[1746675657939,0.052074,98860.0,98853.0,0.062]
[1746675658130,0.169,98856.0,98853.0,0.502]
[1746675658333,0.169,98856.0,98853.0,0.42104]
[1746675658635,0.001,98854.0,98853.0,0.6233504]
[1746675658830,0.001,98854.0,98853.0,0.42104]
[1746675659142,0.169,98854.0,98853.0,0.42104]
[1746675659332,0.169,98854.0,98853.0,0.38008]
[1746675659733,0.3713084,98854.0,98853.0,0.39056994]
[1746675660037,0.3713084,98854.0,98853.0,0.44056994]
[1746675660236,0.169,98854.0,98853.0,0.44056994]
[1746675660638,0.2965,98854.0,98853.0,0.44056994]
[1746675660942,0.2965,98854.0,98853.0,0.64288034]
[1746675661343,0.3614,98854.0,98853.0,0.64688034]
[1746675661735,0.5647084,98854.0,98853.0,0.4031032]
[1746675661937,0.5647084,98854.0,98853.0,0.0670232]
[1746675662138,0.5647084,98854.0,98853.0,0.01653326]
[1746675662339,0.26677974,98842.0,98841.0,0.36822398]
[1746675662538,0.26677974,98842.0,98841.0,0.64822398]
[1746675662747,0.26677974,98842.0,98841.0,0.65822398]
[1746675662938,0.26677974,98842.0,98841.0,0.61822398]
[1746675663146,0.56437974,98842.0,98841.0,0.61822398]
[1746675663347,0.56437974,98842.0,98841.0,0.36822398]
[1746675663547,0.56437974,98842.0,98841.0,0.66822398]
[1746675663845,0.56537974,98842.0,98841.0,0.65322398]
[1746675664547,0.56537974,98842.0,98841.0,0.37322398]
[1746675664739,0.56537974,98842.0,98841.0,0.67322398]
[1746675664940,0.56637974,98842.0,98841.0,0.67822398]
[1746675665342,0.56637974,98842.0,98841.0,0.72830443]
[1746675665643,0.56637974,98842.0,98841.0,0.74830443]
[1746675665844,0.36404674,98842.0,98841.0,0.95063943]
[1746675666037,0.29934674,98842.0,98841.0,0.95063943]
[1746675666647,0.29934674,98842.0,98841.0,1.07373943]
[1746675668045,0.29934674,98842.0,98841.0,0.82293943]
[1746675669349,0.23444674,98842.0,98841.0,0.82293943]
[1746675670348,0.0622,98861.0,98841.0,0.82293943]
[1746675670349,0.2022923,98862.0,98841.0,0.62060443]
[1746675670645,0.0505684,98871.0,98841.0,0.62060443]
[1746675670646,0.01315,98859.0,98852.0,0.09174891]
[1746675670842,0.3608,98873.0,98853.0,0.1892]
[1746675671144,0.2022939,98862.0,98860.0,0.09174891]
[1746675671350,0.2022939,98862.0,98861.0,0.13208]
[1746675671541,0.2042939,98862.0,98861.0,0.59208]
[1746675671942,0.2032939,98862.0,98861.0,0.59208]
[1746675672148,0.3712939,98862.0,98861.0,0.59208]
[1746675672843,0.4377939,98862.0,98861.0,0.55104]
[1746675673844,0.2355,98862.0,98861.0,0.55104]
[1746675674236,0.2355,98862.0,98861.0,0.55604]
[1746675674441,0.2953,98862.0,98861.0,0.55604]
[1746675675245,0.2953,98862.0,98861.0,0.61634]
[1746675675445,0.2953,98862.0,98861.0,0.67134]
[1746675675645,0.2953,98862.0,98861.0,0.67634]
[1746675675852,0.2953,98862.0,98861.0,0.8786341]
[1746675676655,0.17,98862.0,98861.0,0.8786341]
[1746675677152,0.002,98862.0,98861.0,0.8786341]
[1746675678658,0.002,98862.0,98861.0,0.9686341]
[1746675679048,0.17,98862.0,98861.0,0.9686341]
[1746675681872,0.17,98862.0,98861.0,0.8686341]
[1746675683362,0.17,98862.0,98861.0,0.9886341]
[1746675684969,0.17,98862.0,98861.0,0.78634]
[1746675685171,0.17,98862.0,98861.0,0.9886341]
[1746675689372,0.17,98862.0,98861.0,0.8086341]
[1746675689567,0.17,98862.0,98861.0,0.8486341]
[1746675692173,0.17,98862.0,98861.0,0.9286341]
[1746675692677,0.48604893,98971.0,98881.0,0.3608]
[1746675692874,0.2021366,98938.0,98937.0,0.3608]
[1746675693181,0.2021366,98938.0,98937.0,0.8896]
[1746675693582,0.2021366,98938.0,98937.0,0.89730898]
[1746675693783,0.3071366,98938.0,98937.0,0.81640898]
[1746675694081,0.47362064,98938.0,98937.0,0.64840898]
[1746675694378,0.47362064,98938.0,98937.0,0.20670898]
[1746675694581,0.47962064,98938.0,98937.0,0.12750898]
[1746675694781,0.2021652,98924.0,98923.0,0.3608]
[1746675694982,0.2021652,98924.0,98923.0,0.3708]
[1746675695179,0.3701652,98924.0,98923.0,0.29745593]
[1746675695479,0.3701652,98924.0,98923.0,0.01757593]
[1746675695783,0.4218652,98924.0,98923.0,0.01757593]
[1746675696182,0.4218652,98924.0,98923.0,0.21974323]
[1746675696875,0.006,98938.0,98923.0,0.84757593]
[1746675697072,0.106,98961.0,98950.0,0.09158576]
[1746675697383,0.06088,98950.0,98949.0,0.2021142]
[1746675697579,0.06088,98950.0,98949.0,0.4021142]
[1746675697781,0.1565,99000.0,98975.0,0.2020611]
[1746675697974,0.0533,98989.0,98986.0,0.2020386]
[1746675698175,0.0533,98989.0,98986.0,1.0408386]
[1746675698481,0.0533,98998.0,98986.0,0.53620143]
[1746675698673,0.106,98988.0,98986.0,0.99824003]
[1746675698880,0.0533,98988.0,98986.0,0.99824003]
[1746675699075,0.09565962,98987.0,98986.0,0.99824003]
[1746675699271,0.04235962,98987.0,98986.0,0.99824003]
[1746675699476,0.24439622,98987.0,98986.0,0.84666217]
[1746675699778,0.24439622,98987.0,98986.0,0.57620143]
[1746675700179,0.41839622,98987.0,98986.0,0.40920143]
[1746675700380,0.41839622,98987.0,98986.0,0.36920143]
[1746675700572,0.42539622,98987.0,98986.0,0.39020143]
[1746675700776,0.42539622,98987.0,98986.0,0.38920143]
[1746675700777,0.41939622,98987.0,98986.0,0.38920143]
[1746675700977,0.42539622,98987.0,98986.0,0.39020143]
[1746675701275,0.42539622,98987.0,98965.0,0.0489]
[1746675701276,0.08084,98961.0,98955.0,0.2021005]
[1746675701587,0.08084,98961.0,98958.0,0.3608]
[1746675701777,0.08084,98961.0,98960.0,0.2020917]
[1746675701978,0.08084,98961.0,98960.0,0.5120917]
[1746675702275,0.08084,98961.0,98960.0,0.6000117]
[1746675702470,0.08084,98961.0,98960.0,0.6489117]
[1746675702674,0.08084,98961.0,98960.0,0.6989117]
[1746675702880,1e-08,98961.0,98960.0,0.7189117]
[1746675703080,1e-08,98961.0,98960.0,0.7989917]
[1746675703280,0.0495,98982.0,98960.0,0.7989917]
[1746675703281,0.2515474,98982.0,98976.0,0.2020586]
[1746675703475,0.0495,98982.0,98977.0,0.1026]
[1746675703681,0.202055,98978.0,98977.0,0.09]
[1746675703873,0.202055,98978.0,98977.0,0.06]
[1746675704077,0.2020754,98968.0,98967.0,0.3608]
[1746675704283,0.2020754,98968.0,98967.0,0.3908]
[1746675704284,0.2425054,98968.0,98967.0,0.3908]
[1746675704987,0.2425054,98968.0,98967.0,0.03]
[1746675705284,0.31113,98968.0,98967.0,0.02]
[1746675705679,0.5132054,98968.0,98967.0,0.02]
[1746675705882,0.31113,98968.0,98967.0,0.02]
[1746675706077,0.31113,98968.0,98967.0,0.5220774]
[1746675706786,0.31113,98968.0,98967.0,0.5705774]
[1746675706982,0.31113,98968.0,98967.0,0.5615774]
[1746675707392,0.31113,98968.0,98967.0,0.311]
[1746675707593,0.5132054,98968.0,98967.0,0.312]
[1746675707788,0.5132054,98968.0,98967.0,0.352]
[1746675707990,0.31113,98968.0,98967.0,0.5540774]
[1746675708379,0.5132054,98968.0,98967.0,0.4205]
[1746675708582,0.5132054,98968.0,98967.0,0.372]
[1746675708780,0.5132054,98968.0,98967.0,0.5740774]
[1746675709290,0.31113,98968.0,98967.0,0.5740774]
[1746675709690,0.31113,98968.0,98967.0,0.372]
[1746675709889,0.5132054,98968.0,98967.0,0.372]
[1746675710194,0.5132054,98968.0,98967.0,0.112]
[1746675710384,0.5132054,98968.0,98967.0,0.072]
[1746675710697,0.5132054,98968.0,98967.0,0.302]
[1746675711194,0.51337116,98968.0,98967.0,0.302]
[1746675712398,0.2020897,98961.0,98960.0,0.2574104]
[1746675712587,0.2020897,98961.0,98960.0,0.26]
[1746675712895,0.2020897,98961.0,98960.0,0.29]
[1746675713289,0.2020897,98961.0,98960.0,0.4920917]
[1746675713493,0.2020897,98961.0,98960.0,0.4940917]
[1746675713690,0.2020897,98961.0,98960.0,0.302]
[1746675714195,0.3700897,98961.0,98960.0,0.302]
[1746675714694,0.3700897,98961.0,98960.0,0.307]
[1746675715791,0.168,98961.0,98960.0,0.307]
[1746675716096,0.3700897,98961.0,98960.0,0.307]
[1746675716688,0.168,98961.0,98960.0,0.307]
[1746675717091,0.169,98961.0,98960.0,0.305]
[1746675717400,0.002,98961.0,98960.0,0.31]
[1746675717697,0.1044,98961.0,98960.0,0.305]
[1746675717896,0.1044,98961.0,98960.0,0.31]
[1746675718097,0.2724,98961.0,98960.0,0.31]
[1746675718489,0.2724,98961.0,98960.0,0.6708]
[1746675719395,0.1044,98961.0,98960.0,0.6708]
[1746675719785,0.1034,98961.0,98960.0,0.6698]
[1746675719990,0.1034,98961.0,98960.0,0.6678]
[1746675719991,0.3044897,98961.0,98960.0,0.6678]
[1746675720193,0.2704,98961.0,98960.0,0.6678]
[1746675721191,0.1024,98961.0,98960.0,0.6678]
[1746675722093,0.2704,98961.0,98960.0,0.6678]
[1746675722306,0.2704,98961.0,98960.0,0.8698917]
[1746675723198,0.0535,98961.0,98960.0,0.9701917]
[1746675724395,0.04059576,98968.0,98967.0,0.2020774]
[1746675724596,0.04059576,98968.0,98967.0,0.6220774]
[1746675724791,0.04059576,98968.0,98967.0,0.42]
[1746675724997,0.24267116,98968.0,98967.0,0.42]
[1746675725510,0.2020892,98962.0,98960.0,0.3678]
[1746675725799,0.2541897,98961.0,98960.0,0.037]
[1746675726003,0.2020937,98959.0,98958.0,0.0075471]
[1746675726198,0.0505239,98958.0,98945.0,0.05154096]
[1746675726401,0.04043,98957.0,98950.0,0.0505279]
[1746675726602,0.04043,98957.0,98951.0,0.0505275]
[1746675726795,0.04043,98957.0,98951.0,0.3694]
[1746675726990,0.04235962,98987.0,98952.0,0.3608]
[1746675727192,0.00295734,98975.0,98973.0,0.3608]
[1746675727399,0.0506,98974.0,98973.0,0.4108]
[1746675727904,0.0505099,98986.0,98973.0,0.6708]
[1746675728104,0.0506,98981.0,98975.0,0.0505152]
[1746675728405,0.0506,98981.0,98977.0,0.202056]
[1746675728600,0.0506,98981.0,98978.0,0.1042]
[1746675728797,0.0506,98981.0,98978.0,0.5042]
[1746675729203,0.0506,98981.0,98978.0,0.6722]
[1746675729599,0.0506,98981.0,98978.0,0.8742545]
[1746675730200,0.0506,98981.0,98978.0,0.6722]
[1746675730405,0.0504,98980.0,98978.0,0.6722]
[1746675730900,0.0505,98979.0,98978.0,0.874255]
[1746675731207,0.2525529,98979.0,98978.0,0.391]
[1746675731401,0.2525529,98979.0,98978.0,0.121]
[1746675731799,0.2525529,98979.0,98978.0,0.122]
[1746675732708,0.0505,98979.0,98978.0,0.302]
[1746675732897,0.0511,98979.0,98978.0,0.302]
[1746675733403,0.0511,98979.0,98978.0,0.232055]
[1746675733601,0.0511,98979.0,98978.0,0.3714]
[1746675733800,0.0511,98979.0,98978.0,0.2314]
[1746675734204,0.0006,98979.0,98978.0,0.2314]
[1746675734411,0.0006,98979.0,98978.0,0.433455]
[1746675735110,0.0006,98979.0,98978.0,0.601455]
[1746675735308,0.0006,98979.0,98978.0,0.631455]
[1746675736498,0.0006,98979.0,98978.0,0.992255]
[1746675739816,0.0006,98979.0,98978.0,0.962255]
[1746675740214,0.0006,98979.0,98978.0,1.012255]
[1746675740510,0.03578962,98989.0,98978.0,0.8102]
[1746675740704,0.03578962,98989.0,98988.0,0.2020345]
[1746675740900,0.03578962,98989.0,98988.0,0.5220345]
[1746675741301,0.0499,99015.0,98999.0,0.2020121]
[1746675741504,0.0499,99015.0,98999.0,0.8228121]
[1746675741704,0.2029989,99006.0,98999.0,0.6208]
[1746675741909,0.001,99006.0,99001.0,0.0505017]
[1746675742108,0.001,99006.0,99005.0,0.2019998]
[1746675742413,0.001,99006.0,99005.0,0.4519998]
[1746675742613,0.001,99006.0,99005.0,0.03]
[1746675742802,0.001,99006.0,99001.0,0.168]
[1746675743003,0.0504999,99005.0,99002.0,0.0502]
[1746675743316,0.2020039,99003.0,99002.0,0.208]
[1746675743708,0.2020039,99003.0,99002.0,0.178]
[1746675743912,0.2020039,99003.0,99002.0,0.168]
[1746675744111,0.2539039,99003.0,99002.0,0.01]
[1746675744410,0.2020284,98991.0,98990.0,0.10996]
[1746675744608,0.2020284,98991.0,98990.0,0.41996]
[1746675744808,0.2020284,98991.0,98990.0,0.10996]
[1746675745009,0.2020284,98991.0,98990.0,0.01]
[1746675745210,0.4665284,98991.0,98990.0,0.01]
[1746675745610,0.4665284,98991.0,98990.0,0.011]
[1746675746212,0.4665284,98991.0,98990.0,0.031]
[1746675746412,0.4665284,98991.0,98990.0,0.011]
[1746675746605,0.4665284,98991.0,98990.0,0.00962492]
[1746675747218,0.2020386,98986.0,98985.0,0.01851173]
[1746675747408,0.2020386,98986.0,98985.0,0.01]
[1746675747609,0.2020386,98986.0,98985.0,0.02]
[1746675747805,0.2645,98991.0,98986.0,0.0505096]
[1746675748010,0.2645,98991.0,98990.0,0.5638305]
[1746675748218,0.2985284,98991.0,98990.0,0.4218]
[1746675748520,0.2985284,98991.0,98990.0,0.061]
[1746675748721,0.2985284,98991.0,98990.0,0.031]
[1746675749118,0.2985284,98991.0,98990.0,0.001]
[1746675749317,0.2020325,98989.0,98988.0,0.3608]
[1746675749510,0.2020325,98989.0,98988.0,0.6308]
[1746675750011,0.2020325,98989.0,98988.0,0.6608]
[1746675750210,0.3700325,98989.0,98988.0,0.6608]
[1746675750918,0.3700325,98989.0,98988.0,0.8628345]
[1746675751115,0.168,98989.0,98988.0,0.8628345]
[1746675751318,0.04042,98995.0,98994.0,0.2020223]
[1746675751319,0.2424403,98995.0,98994.0,0.2020223]
[1746675751521,0.2424403,98995.0,98994.0,0.4620223]
[1746675751717,0.3608,99024.0,99005.0,0.2019998]
[1746675751718,0.2019776,99016.0,99005.0,0.2019998]
[1746675751910,0.2029978,99006.0,99005.0,0.01]
[1746675752110,0.2029978,99006.0,99005.0,0.2294]
[1746675752317,0.001,99006.0,99005.0,0.7313998]
[1746675752620,0.001,99006.0,99005.0,0.5294]
[1746675752813,0.098,99006.0,99005.0,0.5294]
[1746675753210,0.1,99006.0,99005.0,0.3614]
[1746675754118,0.103,99006.0,99005.0,0.3614]
[1746675754922,0.103,99006.0,99005.0,0.3714]
[1746675755116,0.103,99006.0,99005.0,0.5733998]
[1746675755117,0.006,99006.0,99005.0,0.5733998]
[1746675755318,0.001,99036.0,99030.0,0.2019489]
[1746675755512,0.001,99036.0,99021.0,0.45238576]
[1746675755713,0.2019631,99023.0,99022.0,0.0474]
[1746675755917,0.0504904,99024.0,99014.0,0.0482]
[1746675756113,0.1021916,99022.0,99014.0,0.2456]
[1746675756322,0.0521,99021.0,99014.0,0.2456]
[1746675756525,0.2019794,99015.0,99014.0,0.2456]
[1746675756918,0.2019794,99015.0,99014.0,0.2556]
[1746675757113,0.2019794,99015.0,99014.0,0.2074]
[1746675757712,0.2542794,99015.0,99014.0,0.2074]
[1746675758116,0.4222794,99015.0,99014.0,0.2074]
[1746675758319,0.4232794,99015.0,99014.0,0.2074]
[1746675758619,0.4232794,99015.0,99014.0,0.15]
[1746675760924,0.4232794,99015.0,99014.0,0.17]
[1746675762422,0.4232794,99015.0,99004.0,0.1218]
[1746675762423,0.202006,99002.0,99001.0,0.00151492]
[1746675762626,0.202006,99002.0,99001.0,0.23352292]
[1746675762818,0.202006,99002.0,99001.0,0.24352292]
[1746675763018,0.202006,99002.0,99001.0,0.48352292]
[1746675763222,0.370006,99002.0,99001.0,0.28151492]
[1746675763824,0.370006,99002.0,99001.0,0.28651492]
[1746675764122,0.730806,99002.0,99001.0,0.00651492]
[1746675764327,0.2020203,98995.0,98994.0,0.11416]
[1746675764530,0.2020386,98986.0,98985.0,0.4099235]
[1746675764720,0.1454,98994.0,98985.0,0.8126335]
[1746675764924,0.0492,98994.0,98986.0,0.0971]
[1746675765229,0.2020366,98987.0,98986.0,0.33]
[1746675765421,0.2020366,98987.0,98986.0,0.2122]
[1746675765629,0.2020366,98987.0,98986.0,0.2222]
[1746675766130,0.4671366,98987.0,98986.0,0.2222]
[1746675766324,0.4671366,98987.0,98986.0,0.272]
[1746675766825,0.4671366,98987.0,98986.0,0.2242]
[1746675767527,0.4671366,98987.0,98986.0,0.2262]
[1746675768129,0.4671366,98987.0,98986.0,0.2242]
[1746675768331,0.4671366,98987.0,98986.0,0.2262]
[1746675768830,0.3608,99037.0,98986.0,0.9062]
[1746675769019,0.2019553,99027.0,99025.0,0.09158576]
[1746675769224,0.2019553,99027.0,99026.0,0.1011]
[1746675769929,0.0504851,99034.0,99026.0,0.15390563]
[1746675770130,0.201955,99027.0,99026.0,0.15390563]
[1746675770329,0.205955,99027.0,99026.0,0.15490563]
[1746675770925,0.209955,99027.0,99026.0,0.15490563]
[1746675772135,0.377955,99027.0,99026.0,0.15490563]
[1746675773037,0.377955,99027.0,99026.0,0.10350563]
[1746675773333,0.209955,99027.0,99026.0,0.05380563]
[1746675773834,0.208455,99027.0,99026.0,0.05380563]
[1746675774234,0.376455,99027.0,99026.0,0.01339563]
[1746675774426,0.428755,99027.0,99013.0,0.0516]
[1746675774737,0.428755,99027.0,99003.0,0.03]
[1746675774738,0.2020019,99004.0,99003.0,0.03]
[1746675774925,0.2020019,99004.0,99003.0,0.4101]
[1746675775532,0.2020019,99004.0,99003.0,0.4401]
[1746675775730,0.2020019,99004.0,99003.0,0.3901]
[1746675775932,0.2020019,99004.0,99003.0,0.43344882]
[1746675776134,0.3700019,99004.0,99003.0,0.43444882]
[1746675776332,0.3700019,99004.0,99003.0,0.44444882]
[1746675776727,0.3700019,99004.0,99003.0,0.13434882]
[1746675777129,0.3700019,99004.0,99003.0,0.05434882]
[1746675777328,0.3700019,99004.0,99003.0,0.35434882]
[1746675777629,0.3700019,99004.0,99003.0,0.34434882]
[1746675778029,0.3700019,99004.0,99003.0,0.35434882]
[1746675779039,0.3700019,99004.0,99003.0,0.45024882]
[1746675779825,0.3700019,99004.0,99003.0,0.46024882]
[1746675780737,0.168,99004.0,99003.0,0.66225272]
[1746675781633,0.0504892,99026.0,99012.0,0.2019856]
[1746675781841,0.2019751,99018.0,99012.0,0.9327856]
[1746675782033,0.2424035,99013.0,99012.0,0.37]
[1746675782238,0.2424035,99013.0,99012.0,0.35]
[1746675782446,0.2424035,99013.0,99012.0,0.4658]
[1746675782635,0.2424035,99013.0,99012.0,0.4458]
[1746675782837,0.2444035,99013.0,99012.0,0.4458]
[1746675783035,0.2936035,99013.0,99012.0,0.4658]
[1746675783236,0.4616035,99013.0,99012.0,0.4658]
[1746675783545,0.4616035,99013.0,99012.0,0.4458]
[1746675783751,0.4616035,99013.0,99012.0,0.4758]
[1746675783946,0.4616035,99013.0,99012.0,0.35]
[1746675784548,0.2019876,99011.0,99010.0,0.3608]
[1746675784749,0.2019876,99011.0,99010.0,0.6308]
[1746675785249,0.3699876,99011.0,99010.0,0.6308]
[1746675785852,0.3709876,99011.0,99010.0,0.6308]
[1746675786052,0.3719876,99011.0,99010.0,0.6308]
[1746675786243,0.3719876,99011.0,99010.0,0.6408]
[1746675786444,0.3719876,99011.0,99010.0,0.6308]
[1746675787252,0.2039876,99011.0,99010.0,0.6308]
[1746675788047,0.2039876,99011.0,99010.0,0.6608]
[1746675788251,0.3719876,99011.0,99010.0,0.6308]
[1746675788742,0.3719876,99011.0,99010.0,0.6208]
[1746675789146,0.3719876,99011.0,99010.0,0.6508]
[1746675789848,0.3719876,99011.0,99010.0,0.4008]
[1746675790849,0.3719876,99011.0,99010.0,0.3808]
[1746675792252,0.2020019,99004.0,99003.0,0.04334882]
[1746675792456,0.2204969,99011.0,98996.0,0.2020177]
[1746675792457,0.2525268,98997.0,98996.0,0.0505043]
[1746675792645,0.2525268,98997.0,98996.0,0.5425225]
[1746675793151,0.3608,99037.0,99012.0,0.2019856]
[1746675793350,0.2928996,99013.0,99012.0,0.6908]
[1746675793549,0.2424035,99013.0,99012.0,0.6908]
[1746675793941,0.2424035,99013.0,99012.0,0.8927856]
[1746675794145,0.20842,99013.0,99012.0,0.8927856]
[1746675794349,0.20842,99013.0,99012.0,0.9027856]
[1746675794849,0.4598035,99013.0,99012.0,0.7008]
[1746675795248,0.2918035,99013.0,99012.0,0.7008]
[1746675795650,0.2918035,99013.0,99012.0,0.6708]
[1746675795850,0.2928035,99013.0,99012.0,0.6708]
[1746675796445,0.2928035,99013.0,99012.0,0.6908]
[1746675796846,0.2928035,99013.0,99012.0,0.6708]
[1746675797249,0.2928035,99013.0,99003.0,0.3618]
[1746675797250,0.2020019,99004.0,99003.0,0.3618]
[1746675797451,0.2020019,99004.0,99003.0,0.6118]
[1746675797648,0.2020019,99004.0,99003.0,0.011]
[1746675797955,0.2020019,99004.0,99003.0,0.001]
[1746675798153,0.4712019,99004.0,99003.0,0.001]
[1746675798354,0.2020264,98992.0,98986.0,0.0499]
[1746675798541,0.2020264,98992.0,98991.0,0.6408]
[1746675798747,0.2020264,98992.0,98991.0,0.69396326]
[1746675799146,0.4712264,98992.0,98991.0,0.69396326]
[1746675799551,0.4712264,98992.0,98991.0,0.69996326]
[1746675799754,0.4712264,98992.0,98991.0,0.48996326]
[1746675800154,0.4712264,98992.0,98991.0,0.47896326]
[1746675800354,0.3712264,98992.0,98991.0,0.47896326]
[1746675800554,0.3712264,98992.0,98991.0,0.47596326]
[1746675800751,0.3712264,98992.0,98991.0,0.47796326]
[1746675800948,0.3712264,98992.0,98991.0,0.51796326]
[1746675801448,0.3712264,98992.0,98991.0,0.73796326]
[1746675801753,0.3712264,98992.0,98991.0,0.49796326]
[1746675801945,0.3712264,98992.0,98991.0,0.49696326]
[1746675802353,0.3712264,98992.0,98991.0,0.44596326]
[1746675802554,0.3712264,98992.0,98991.0,0.71596326]
[1746675802855,0.3712264,98992.0,98991.0,0.71496326]
[1746675803057,0.3712264,98992.0,98991.0,0.50496326]
[1746675804156,0.2032264,98992.0,98991.0,0.50496326]
[1746675804349,0.2032264,98992.0,98991.0,0.51496326]
[1746675804658,0.2032264,98992.0,98991.0,0.73496326]
[1746675804851,0.1538264,98992.0,98991.0,0.74496326]
[1746675805450,0.2020203,98997.0,98994.0,0.0505053]
[1746675805657,0.03942,98999.0,98998.0,0.2020141]
[1746675805958,0.03942,98999.0,98998.0,0.5020141]
[1746675806151,0.03942,98999.0,98998.0,0.6700141]
[1746675806352,0.2020086,99001.0,99000.0,0.2020083]
[1746675806658,0.2020086,99001.0,99000.0,0.5420083]
[1746675807157,0.2020086,99001.0,99000.0,0.5836083]
[1746675807456,0.2020047,99003.0,99001.0,0.2020068]
[1746675807655,0.2020047,99003.0,99002.0,0.3608]
[1746675807856,0.2020047,99003.0,99002.0,0.8524]
[1746675808055,0.2020047,99003.0,99002.0,0.9026]
[1746675808957,0.2554047,99003.0,99002.0,0.9036]
[1746675810045,0.0534,99003.0,99002.0,0.9046]
[1746675810252,0.0534,99003.0,99002.0,1.106606]
[1746675810452,0.0504984,99008.0,99002.0,0.9046]
[1746675810652,0.2020008,99005.0,99002.0,0.9046]
[1746675810959,0.0515,99007.0,99002.0,0.9046]
[1746675811151,0.2020008,99005.0,99002.0,0.9046]
[1746675811860,0.2020039,99003.0,99002.0,0.9046]
[1746675812055,0.2020039,99003.0,99002.0,0.9036]
[1746675812260,0.2020039,99003.0,99002.0,0.9046]
[1746675813055,0.2020006,99005.0,99002.0,0.9046]
[1746675813263,0.0529,99004.0,99002.0,0.9046]
[1746675813651,0.2549023,99004.0,99002.0,0.9036]
[1746675813852,0.2549023,99004.0,99002.0,0.9046]
[1746675814049,0.0529,99004.0,99002.0,1.1066056]
[1746675814251,0.0529,99004.0,99003.0,0.2020039]
[1746675814558,0.0529,99004.0,99003.0,0.6720039]
[1746675814755,0.0529,99004.0,99003.0,0.7718039]
[1746675816156,0.03942,99009.0,99006.0,0.2019961]
[1746675816353,0.0492,99008.0,99007.0,0.1064]
[1746675816555,0.0492,99008.0,99007.0,0.526]
[1746675816761,0.0492,99008.0,99007.0,0.436]
[1746675817264,0.0492,99008.0,99007.0,0.466]
[1746675818260,0.0492,99008.0,99007.0,0.6679958]
[1746675818662,0.0502,99008.0,99007.0,0.6679958]
[1746675819463,0.001,99008.0,99007.0,0.6679958]
[1746675820155,0.001,99008.0,99007.0,0.8359958]
[1746675820359,1e-08,99009.0,99008.0,0.2019937]
[1746675820566,1e-08,99009.0,99008.0,0.7621937]
[1746675821258,0.2019617,99024.0,99008.0,0.7282]
[1746675821459,0.2019617,99024.0,99023.0,0.3608]
[1746675821660,0.2019617,99024.0,99023.0,0.6808]
[1746675822269,0.3699617,99024.0,99023.0,0.6808]
[1746675822470,0.168,99024.0,99023.0,0.9972031]
[1746675822862,0.3699611,99024.0,99023.0,0.79524]
[1746675823065,0.3699611,99024.0,99023.0,0.56524]
[1746675823265,0.3699611,99024.0,99023.0,0.77524]
[1746675823582,0.3709611,99024.0,99023.0,0.77524]
[1746675823867,0.4237611,99024.0,99023.0,0.51524]
[1746675824060,0.4237611,99024.0,99023.0,0.55524]
[1746675824262,0.4227611,99024.0,99023.0,0.79524]
[1746675824462,0.4791611,99024.0,99023.0,0.51524]
[1746675824763,0.4791611,99024.0,99023.0,0.57524]
[1746675824963,0.4791611,99024.0,99023.0,0.53524]
[1746675825768,0.4791611,99024.0,99023.0,0.54524]
[1746675827364,0.4791611,99024.0,99023.0,0.75524]
[1746675827568,0.4791611,99024.0,99023.0,0.6872031]
[1746675827772,0.4791611,99024.0,99023.0,0.77524]
[1746675828263,0.4791611,99024.0,99023.0,0.49524]
[1746675829074,0.4791611,99024.0,99023.0,0.79524]
[1746675829258,0.4791611,99024.0,99023.0,0.48524]
[1746675829463,0.4791611,99024.0,99023.0,0.53524]
[1746675829663,0.4791611,99024.0,99023.0,0.54524]
[1746675830970,0.3791611,99024.0,99023.0,0.54524]
[1746675831563,0.3791611,99024.0,99023.0,0.53524]
[1746675832272,0.3791611,99024.0,99023.0,0.6227631]
[1746675832476,0.3791611,99024.0,99023.0,0.4208]
[1746675833170,0.3791611,99024.0,99023.0,0.6208]
[1746675833565,0.3791611,99024.0,99023.0,0.6308]
[1746675834269,0.3111611,99024.0,99023.0,0.6308]
[1746675835176,0.4791611,99024.0,99023.0,0.03]
[1746675835864,0.5296516,99024.0,99023.0,0.17]
[1746675836174,0.4791611,99024.0,99023.0,0.17]
[1746675836665,0.4791611,99024.0,99023.0,0.18]
[1746675837066,0.4791611,99024.0,99023.0,0.3003]
[1746675837672,0.4791611,99024.0,99023.0,0.17]
[1746675838466,0.4791611,99024.0,99023.0,0.18]
[1746675842465,0.2772,99024.0,99023.0,0.2418]
[1746675842670,0.4791611,99024.0,99023.0,0.2418]
[1746675843762,0.4791611,99024.0,99023.0,0.18]
[1746675843963,0.4791611,99024.0,99023.0,0.16]
[1746675844162,0.0504936,99018.0,99006.0,0.0596]